[Event "Live Chess"]
[Site "Chess.com"]
[Date "2023.09.16"]
[Round "-"]
[White "Luisgustavo100"]
[Black "Tercette"]
[Result "1-0"]
[WhiteElo "947"]
[BlackElo "138"]
[TimeControl "900+5"]
[EndTime "15:44:10 PDT"]
[Termination "Luisgustavo100 venceu por desistência"]

1. e4 {[%clk 0:15:02.2]} 1... e5 {[%clk 0:15:03.6]} 2. Nf3 {[%clk 0:15:05.4]}
2... Bb4 {[%clk 0:15:06.2]} 3. c3 {[%clk 0:14:58.9]} 3... Bc5 {[%clk 0:15:09]}
4. d4 {[%clk 0:15:00.5]} 4... Bd6 {[%clk 0:15:11.3]} 5. dxe5 {[%clk 0:15:01.6]}
5... Nc6 {[%clk 0:15:14.6]} 6. exd6 {[%clk 0:15:05]} 6... cxd6 {[%clk
0:15:16.8]} 7. Qxd6 {[%clk 0:15:01.5]} 7... Na5 {[%clk 0:15:11.4]} 8. b3 {[%clk
0:14:35.8]} 8... Qe7 {[%clk 0:15:08.6]} 9. Qxe7+ {[%clk 0:14:38.3]} 9... Kxe7
{[%clk 0:15:12]} 10. Bc4 {[%clk 0:14:33.5]} 10... Nf6 {[%clk 0:15:15.2]} 11. O-O
{[%clk 0:14:33.9]} 11... Nxe4 {[%clk 0:15:18.1]} 12. Re1 {[%clk 0:14:36.1]}
12... Nxc4 {[%clk 0:15:16.7]} 13. Rxe4+ {[%clk 0:14:37.3]} 13... Kf8 {[%clk
0:15:12.1]} 14. Rxc4 {[%clk 0:14:39.3]} 14... d5 {[%clk 0:15:08.3]} 15. Rd4
{[%clk 0:14:36.2]} 15... Bd7 {[%clk 0:15:07]} 16. Rxd5 {[%clk 0:14:35.1]} 16...
Rd8 {[%clk 0:15:04.7]} 17. Bf4 {[%clk 0:14:28.1]} 17... Ke7 {[%clk 0:15:03.2]}
18. Nbd2 {[%clk 0:14:26.2]} 18... Ke6 {[%clk 0:15:06.3]} 19. c4 {[%clk
0:14:24.1]} 19... b5 {[%clk 0:15:08.4]} 20. Re5+ {[%clk 0:14:14.6]} 20... Kf6
{[%clk 0:15:09.8]} 21. h3 {[%clk 0:14:03.1]} 21... g5 {[%clk 0:15:11.2]} 22.
Nxg5 {[%clk 0:13:59.4]} 22... h6 {[%clk 0:15:12.8]} 23. Ngf3 {[%clk 0:13:57.7]}
23... Rdg8 {[%clk 0:15:10.3]} 24. Rae1 {[%clk 0:13:55.4]} 24... Rg6 {[%clk
0:15:13.6]} 25. Re7 {[%clk 0:13:50.5]} 25... Rhg8 {[%clk 0:15:16.2]} 26. g3
{[%clk 0:13:24.6]} 26... bxc4 {[%clk 0:15:08.7]} 27. Rxd7 {[%clk 0:13:20.1]}
27... cxb3 {[%clk 0:15:11.8]} 28. axb3 {[%clk 0:13:23.5]} 28... R6g7 {[%clk
0:15:11.3]} 29. Bxh6 {[%clk 0:13:14.2]} 29... Rh7 {[%clk 0:15:11.5]} 30. Bf4
{[%clk 0:13:02.3]} 30... Rxh3 {[%clk 0:15:12.1]} 31. Ree7 {[%clk 0:12:43]} 31...
Rhh8 {[%clk 0:15:10.5]} 32. Rxf7+ {[%clk 0:12:41.5]} 32... Kg6 {[%clk
0:15:09.8]} 33. Ne5+ {[%clk 0:12:40.6]} 33... Kh5 {[%clk 0:14:47.8]} 34. Rxa7
{[%clk 0:12:25.7]} 34... Rf8 {[%clk 0:14:50.2]} 35. Rxf8 {[%clk 0:12:27.5]}
35... Rxf8 {[%clk 0:14:53.2]} 36. b4 {[%clk 0:12:31.7]} 36... Rd8 {[%clk
0:14:49.9]} 37. b5 {[%clk 0:12:29.6]} 37... Rb8 {[%clk 0:14:53.5]} 38. Ra5
{[%clk 0:12:16.4]} 38... Rb6 {[%clk 0:14:55]} 39. Nd7 {[%clk 0:12:17]} 39... Rb7
{[%clk 0:14:56.7]} 40. Nc5 {[%clk 0:12:09.2]} 40... Rb8 {[%clk 0:14:59.3]} 41.
Bxb8 {[%clk 0:12:12.2]} 41... Kg4 {[%clk 0:15:01.4]} 42. b6 {[%clk 0:12:14.4]}
42... Kh3 {[%clk 0:14:58.5]} 43. b7 {[%clk 0:12:16.1]} 43... Kg4 {[%clk
0:15:02.4]} 44. Bf4 {[%clk 0:12:15.5]} 44... Kf5 {[%clk 0:15:05.9]} 45. b8=Q
{[%clk 0:12:19.1]} 45... Kf6 {[%clk 0:15:02.7]} 46. Nce4+ {[%clk 0:12:16.8]} 1-0

[Event "Live Chess"]
[Site "Chess.com"]
[Date "2023.09.16"]
[Round "-"]
[White "Gabriel0298"]
[Black "Japaawz"]
[Result "1-0"]
[WhiteElo "1602"]
[BlackElo "413"]
[TimeControl "900+5"]
[EndTime "15:44:26 PDT"]
[Termination "Gabriel0298 venceu por desistência"]

1. e4 {[%clk 0:15:04.3]} 1... d6 {[%clk 0:14:55.6]} 2. d4 {[%clk 0:15:08]} 2...
Nf6 {[%clk 0:14:53.2]} 3. Nc3 {[%clk 0:15:11.1]} 3... Bg4 {[%clk 0:14:52.6]} 4.
Nf3 {[%clk 0:15:12.7]} 4... Nc6 {[%clk 0:14:53.4]} 5. Bg5 {[%clk 0:15:16.3]}
5... Nb4 {[%clk 0:14:33.5]} 6. a3 {[%clk 0:15:16.1]} 6... Nc6 {[%clk 0:14:34.8]}
7. Bxf6 {[%clk 0:15:19.1]} 7... exf6 {[%clk 0:14:37.8]} 8. Bb5 {[%clk
0:15:23.4]} 8... Qe7 {[%clk 0:14:38]} 9. d5 {[%clk 0:15:26.2]} 9... Bxf3 {[%clk
0:14:30.2]} 10. Qxf3 {[%clk 0:15:29.5]} 10... Rb8 {[%clk 0:14:23.1]} 11. dxc6
{[%clk 0:15:31.4]} 11... bxc6 {[%clk 0:14:26.7]} 12. Bxc6+ {[%clk 0:15:36.3]}
12... Kd8 {[%clk 0:14:29.7]} 13. O-O {[%clk 0:15:32.9]} 13... Rb6 {[%clk
0:14:30.2]} 14. e5 {[%clk 0:15:31.1]} 14... dxe5 {[%clk 0:14:31.6]} 15. Rad1+
{[%clk 0:15:33.9]} 15... Kc8 {[%clk 0:14:32.9]} 16. Qf5+ {[%clk 0:15:34.8]}
16... Kb8 {[%clk 0:14:34.8]} 17. Rd7 {[%clk 0:15:31.7]} 17... Qe8 {[%clk
0:14:25.3]} 18. Rfd1 {[%clk 0:15:19.6]} 18... Bd6 {[%clk 0:14:25.8]} 19. R7xd6
{[%clk 0:15:21.7]} 19... cxd6 {[%clk 0:14:29.7]} 20. Bxe8 {[%clk 0:15:25.4]}
20... Rxe8 {[%clk 0:14:31.1]} 21. Qd7 {[%clk 0:15:29.5]} 21... Rc8 {[%clk
0:14:32.2]} 22. Nd5 {[%clk 0:15:33.6]} 22... Rb7 {[%clk 0:14:35.3]} 23. Qxd6+
{[%clk 0:15:36.2]} 23... Ka8 {[%clk 0:14:37.4]} 24. c3 {[%clk 0:15:29.2]} 24...
Rxb2 {[%clk 0:14:39.1]} 25. Nc7+ {[%clk 0:15:31.5]} 25... Kb7 {[%clk 0:14:26.3]}
26. Nd5 {[%clk 0:15:19.4]} 26... g5 {[%clk 0:14:25.9]} 27. Qd7+ {[%clk
0:15:22.2]} 27... Kb8 {[%clk 0:14:25.7]} 28. Nb4 {[%clk 0:15:26.6]} 28... a5
{[%clk 0:14:25.3]} 29. Na6+ {[%clk 0:15:30.2]} 1-0

[Event "Live Chess"]
[Site "Chess.com"]
[Date "2023.09.16"]
[Round "-"]
[White "abcgames2904"]
[Black "Joasgodoy"]
[Result "1-0"]
[WhiteElo "1181"]
[BlackElo "681"]
[TimeControl "900+5"]
[EndTime "15:45:31 PDT"]
[Termination "abcgames2904 venceu por desistência"]

1. g3 {[%clk 0:15:02]} 1... Nc6 {[%clk 0:15:01.4]} 2. Bg2 {[%clk 0:15:06.9]}
2... b6 {[%clk 0:15:04.1]} 3. Nf3 {[%clk 0:15:11.8]} 3... Bb7 {[%clk 0:15:05.8]}
4. O-O {[%clk 0:15:16.7]} 4... e5 {[%clk 0:15:05.9]} 5. d3 {[%clk 0:15:18.3]}
5... Bd6 {[%clk 0:15:00.3]} 6. Nc3 {[%clk 0:15:22.5]} 6... Nd4 {[%clk
0:14:14.9]} 7. e3 {[%clk 0:15:23.4]} 7... Bxf3 {[%clk 0:14:15.2]} 8. Bxf3 {[%clk
0:15:25.8]} 8... Nxf3+ {[%clk 0:14:15]} 9. Qxf3 {[%clk 0:15:30.7]} 9... Rb8
{[%clk 0:13:53.2]} 10. d4 {[%clk 0:15:27.7]} 10... Nf6 {[%clk 0:13:15]} 11. dxe5
{[%clk 0:15:22.2]} 11... Bxe5 {[%clk 0:12:44.6]} 12. Bd2 {[%clk 0:15:25]} 12...
c6 {[%clk 0:11:55.9]} 13. Qf5 {[%clk 0:15:24.1]} 13... d6 {[%clk 0:11:06.9]} 14.
f4 {[%clk 0:15:25.3]} 14... Bxc3 {[%clk 0:10:57.6]} 15. Bxc3 {[%clk 0:15:30.2]}
15... O-O {[%clk 0:10:39]} 16. Rad1 {[%clk 0:15:20.3]} 16... Re8 {[%clk
0:10:33.3]} 17. Be5 {[%clk 0:15:20.2]} 17... g6 {[%clk 0:10:00.9]} 18. Qxf6
{[%clk 0:15:17.8]} 18... Qxf6 {[%clk 0:10:01.8]} 19. Bxf6 {[%clk 0:15:21.9]}
19... Rxe3 {[%clk 0:09:49.5]} 20. Rxd6 {[%clk 0:15:20]} 20... Rbe8 {[%clk
0:09:46]} 21. Be5 {[%clk 0:15:19.1]} 21... Re2 {[%clk 0:09:17.6]} 22. c4 {[%clk
0:15:19]} 22... b5 {[%clk 0:09:08.9]} 23. Rfd1 {[%clk 0:15:22.5]} 23... Re4
{[%clk 0:08:47.5]} 24. Rd8 {[%clk 0:15:24.7]} 24... Kf8 {[%clk 0:08:05.1]} 25.
Bd6+ {[%clk 0:14:57.7]} 25... Kg7 {[%clk 0:07:56.4]} 26. Be5+ {[%clk 0:14:58.2]}
26... f6 {[%clk 0:07:53.5]} 27. R1d7+ {[%clk 0:15:01.2]} 27... Kh6 {[%clk
0:07:34.4]} 28. Rxe8 {[%clk 0:15:04.6]} 28... bxc4 {[%clk 0:07:28.1]} 29. Kf2
{[%clk 0:14:46.8]} 29... fxe5 {[%clk 0:07:23.4]} 30. Rxe5 {[%clk 0:14:49.9]}
30... Rxe5 {[%clk 0:07:21]} 31. fxe5 {[%clk 0:14:53.2]} 31... Kg5 {[%clk
0:07:21]} 32. Ke3 {[%clk 0:14:48.4]} 1-0

[Event "Live Chess"]
[Site "Chess.com"]
[Date "2023.09.16"]
[Round "-"]
[White "CroNmo"]
[Black "Cantalicioo"]
[Result "1-0"]
[WhiteElo "1832"]
[BlackElo "1481"]
[TimeControl "900+5"]
[EndTime "15:45:45 PDT"]
[Termination "CroNmo venceu por desistência"]

1. d4 {[%clk 0:14:56.2]} 1... Nf6 {[%clk 0:15:03.3]} 2. c4 {[%clk 0:15:00.4]}
2... g6 {[%clk 0:15:07.6]} 3. Nf3 {[%clk 0:15:03.5]} 3... Bg7 {[%clk 0:15:12.1]}
4. Nc3 {[%clk 0:14:59.4]} 4... d6 {[%clk 0:15:15.7]} 5. e3 {[%clk 0:15:01.9]}
5... O-O {[%clk 0:15:19.3]} 6. Be2 {[%clk 0:15:05.7]} 6... c5 {[%clk 0:15:22.7]}
7. O-O {[%clk 0:15:07.5]} 7... d5 {[%clk 0:15:18.6]} 8. cxd5 {[%clk 0:14:48.6]}
8... cxd4 {[%clk 0:15:17.8]} 9. Qxd4 {[%clk 0:14:35.3]} 9... Ng4 {[%clk
0:15:13.2]} 10. Qd1 {[%clk 0:14:37.9]} 10... Qd6 {[%clk 0:15:14.1]} 11. h3
{[%clk 0:14:41.2]} 11... Nf6 {[%clk 0:15:09.8]} 12. e4 {[%clk 0:14:41.6]} 12...
Nh5 {[%clk 0:15:01.9]} 13. e5 {[%clk 0:14:26.2]} 13... Bxe5 {[%clk 0:14:38.4]}
14. Nxe5 {[%clk 0:14:00.2]} 14... Qxe5 {[%clk 0:14:41.5]} 15. Bxh5 {[%clk
0:14:01.2]} 15... Qxh5 {[%clk 0:14:42.6]} 16. Qxh5 {[%clk 0:14:05.4]} 16... gxh5
{[%clk 0:14:46.7]} 17. Bf4 {[%clk 0:13:56.7]} 17... e6 {[%clk 0:14:45.2]} 18.
dxe6 {[%clk 0:13:46.6]} 18... Bxe6 {[%clk 0:14:47.2]} 19. Rfe1 {[%clk
0:13:42.2]} 19... Nc6 {[%clk 0:14:47.8]} 20. Bh6 {[%clk 0:13:31.8]} 20... Rfe8
{[%clk 0:14:48.8]} 21. Ne4 {[%clk 0:13:35.7]} 21... Red8 {[%clk 0:14:22.6]} 22.
Nf6+ {[%clk 0:13:23.9]} 22... Kh8 {[%clk 0:14:22.4]} 23. Nxh5 {[%clk 0:13:28.4]}
23... Rd6 {[%clk 0:14:10.9]} 24. Bf4 {[%clk 0:13:24.9]} 24... Rd5 {[%clk
0:14:03.2]} 25. Nf6 {[%clk 0:13:22.3]} 25... Rf5 {[%clk 0:14:06.4]} 26. Bd2
{[%clk 0:13:15.5]} 26... Rxf6 {[%clk 0:13:58.7]} 27. Bc3 {[%clk 0:13:18.8]}
27... Kg7 {[%clk 0:14:01.7]} 28. Re3 {[%clk 0:13:14.5]} 28... Re8 {[%clk
0:13:58.5]} 29. Rg3+ {[%clk 0:13:15.4]} 29... Kf8 {[%clk 0:13:55.6]} 30. Bxf6
{[%clk 0:13:19]} 1-0

[Event "Live Chess"]
[Site "Chess.com"]
[Date "2023.09.16"]
[Round "-"]
[White "guto-XVI"]
[Black "IMelefante38"]
[Result "1-0"]
[WhiteElo "1519"]
[BlackElo "784"]
[TimeControl "900+5"]
[EndTime "15:46:20 PDT"]
[Termination "guto-XVI venceu por desistência"]

1. Nf3 {[%clk 0:15:04.1]} 1... c5 {[%clk 0:14:52.8]} 2. c4 {[%clk 0:15:07.2]}
2... Nc6 {[%clk 0:14:56.9]} 3. Nc3 {[%clk 0:15:11.3]} 3... g6 {[%clk 0:14:58.9]}
4. g3 {[%clk 0:15:14.9]} 4... Bg7 {[%clk 0:15:02.9]} 5. Bg2 {[%clk 0:15:17.6]}
5... Nf6 {[%clk 0:15:06.2]} 6. O-O {[%clk 0:15:21.6]} 6... e5 {[%clk 0:14:49.2]}
7. d3 {[%clk 0:15:16.1]} 7... h5 {[%clk 0:14:34.7]} 8. h4 {[%clk 0:15:07]} 8...
Nh7 {[%clk 0:14:23.2]} 9. e4 {[%clk 0:14:51.3]} 9... Bf6 {[%clk 0:14:25.2]} 10.
Nd5 {[%clk 0:14:48.1]} 10... g5 {[%clk 0:14:19.3]} 11. Nxf6+ {[%clk 0:14:48.8]}
11... Nxf6 {[%clk 0:14:17.2]} 12. Bxg5 {[%clk 0:14:50.9]} 12... O-O {[%clk
0:14:13.8]} 13. Qd2 {[%clk 0:14:09.1]} 13... Nxe4 {[%clk 0:13:53.7]} 14. dxe4
{[%clk 0:13:52.3]} 14... f6 {[%clk 0:13:50.9]} 15. Be3 {[%clk 0:13:20.5]} 15...
Kf7 {[%clk 0:13:28.3]} 16. Qd5+ {[%clk 0:12:44.5]} 16... Kg7 {[%clk 0:13:22.6]}
17. Bxc5 {[%clk 0:12:33.1]} 17... Ne7 {[%clk 0:13:02.9]} 18. Bxe7 {[%clk
0:12:08.3]} 18... Qxe7 {[%clk 0:13:06.6]} 19. Rfd1 {[%clk 0:12:10.3]} 19... Rd8
{[%clk 0:12:45.8]} 20. Bh3 {[%clk 0:12:08.7]} 20... d6 {[%clk 0:12:18.8]} 21.
Bxc8 {[%clk 0:11:52.4]} 21... Raxc8 {[%clk 0:12:23.7]} 22. b3 {[%clk 0:11:55.5]}
22... Kh6 {[%clk 0:10:27.8]} 23. Kg2 {[%clk 0:11:53.5]} 23... Qf8 {[%clk
0:10:14.7]} 24. Rd2 {[%clk 0:11:42.7]} 24... Rc5 {[%clk 0:10:18.1]} 25. Qxb7
{[%clk 0:11:36.1]} 1-0

[Event "Live Chess"]
[Site "Chess.com"]
[Date "2023.09.16"]
[Round "-"]
[White "Miinero"]
[Black "ViniciusBritoFc"]
[Result "1-0"]
[WhiteElo "1920"]
[BlackElo "1179"]
[TimeControl "900+5"]
[EndTime "15:46:43 PDT"]
[Termination "Miinero venceu por desistência"]

1. e4 {[%clk 0:14:56.9]} 1... c5 {[%clk 0:15:03.9]} 2. f4 {[%clk 0:14:59]} 2...
a6 {[%clk 0:15:08]} 3. Nf3 {[%clk 0:15:03.2]} 3... Nc6 {[%clk 0:15:12.5]} 4. Bc4
{[%clk 0:15:06.2]} 4... e6 {[%clk 0:15:15.5]} 5. a4 {[%clk 0:15:09.6]} 5... g6
{[%clk 0:15:16.1]} 6. O-O {[%clk 0:15:13.3]} 6... Bg7 {[%clk 0:15:20.5]} 7. Kh1
{[%clk 0:15:15.8]} 7... Nge7 {[%clk 0:15:24.9]} 8. d3 {[%clk 0:15:14.2]} 8...
O-O {[%clk 0:15:23.5]} 9. Qe1 {[%clk 0:15:06.5]} 9... b6 {[%clk 0:15:21.6]} 10.
c3 {[%clk 0:15:04.5]} 10... d5 {[%clk 0:15:18.1]} 11. Bb3 {[%clk 0:15:04.6]}
11... dxe4 {[%clk 0:15:14.8]} 12. dxe4 {[%clk 0:15:09.5]} 12... Bb7 {[%clk
0:15:14.6]} 13. Be3 {[%clk 0:15:02.5]} 13... Na5 {[%clk 0:15:03]} 14. Bc2 {[%clk
0:15:05.1]} 14... Nc4 {[%clk 0:15:05.8]} 15. Nbd2 {[%clk 0:14:54.1]} 15... Nxb2
{[%clk 0:14:40.1]} 16. Qh4 {[%clk 0:14:55.4]} 16... Bxc3 {[%clk 0:14:12.1]} 17.
f5 {[%clk 0:14:54.2]} 17... exf5 {[%clk 0:13:51.9]} 18. Ng5 {[%clk 0:13:55.3]}
18... h5 {[%clk 0:13:47.5]} 19. Ndf3 {[%clk 0:13:30.8]} 19... Nc4 {[%clk
0:13:27.1]} 20. Rad1 {[%clk 0:13:33]} 20... Qc7 {[%clk 0:13:17.3]} 21. Bc1
{[%clk 0:13:22.5]} 21... Ne3 {[%clk 0:13:10.3]} 22. Bxe3 {[%clk 0:13:24.8]}
22... f6 {[%clk 0:12:55.8]} 23. Ne6 {[%clk 0:13:24.6]} 23... Qc8 {[%clk
0:12:50.6]} 24. Nxf8 {[%clk 0:13:27.9]} 24... Kxf8 {[%clk 0:12:55.5]} 25. exf5
{[%clk 0:13:31.3]} 25... Nxf5 {[%clk 0:12:59.9]} 26. Bxf5 {[%clk 0:13:31.2]}
26... Qxf5 {[%clk 0:13:02.4]} 27. Ng5 {[%clk 0:13:34.4]} 27... Bxg2+ {[%clk
0:12:11.4]} 28. Kxg2 {[%clk 0:13:37.2]} 28... Qg4+ {[%clk 0:12:07.8]} 29. Qxg4
{[%clk 0:13:39.7]} 29... hxg4 {[%clk 0:12:12.4]} 30. Ne6+ {[%clk 0:13:39]} 30...
Kf7 {[%clk 0:12:15.1]} 31. Nc7 {[%clk 0:13:37.3]} 31... Rh8 {[%clk 0:12:15.3]}
32. Nd5 {[%clk 0:13:40.5]} 32... Ba5 {[%clk 0:12:15.9]} 33. Rxf6+ {[%clk
0:13:42.8]} 33... Kg7 {[%clk 0:12:18.9]} 34. Rdf1 {[%clk 0:13:43.3]} 1-0

[Event "Live Chess"]
[Site "Chess.com"]
[Date "2023.09.16"]
[Round "-"]
[White "silvaaps"]
[Black "Sophowl"]
[Result "1-0"]
[WhiteElo "760"]
[BlackElo "262"]
[TimeControl "900+5"]
[EndTime "15:47:35 PDT"]
[Termination "silvaaps venceu por xeque-mate"]

1. e4 {[%clk 0:15:04.5]} 1... e5 {[%clk 0:14:59]} 2. Nf3 {[%clk 0:15:08.1]} 2...
f6 {[%clk 0:14:58.1]} 3. d3 {[%clk 0:15:10.4]} 3... Bc5 {[%clk 0:14:51.6]} 4.
Be3 {[%clk 0:15:13.7]} 4... Bb4+ {[%clk 0:14:49]} 5. c3 {[%clk 0:15:16.2]} 5...
Ba5 {[%clk 0:14:48.9]} 6. b4 {[%clk 0:15:20.1]} 6... b6 {[%clk 0:14:41.7]} 7.
bxa5 {[%clk 0:15:24]} 7... bxa5 {[%clk 0:14:44.7]} 8. d4 {[%clk 0:15:28.5]} 8...
Nc6 {[%clk 0:14:38.3]} 9. dxe5 {[%clk 0:15:28.2]} 9... fxe5 {[%clk 0:14:39.8]}
10. Nfd2 {[%clk 0:15:28.9]} 10... Nf6 {[%clk 0:14:10.9]} 11. Bc4 {[%clk
0:15:31.7]} 11... Rf8 {[%clk 0:13:04.5]} 12. Bg5 {[%clk 0:15:34.1]} 12... Ne7
{[%clk 0:12:32.2]} 13. Bxf6 {[%clk 0:15:36.8]} 13... Rxf6 {[%clk 0:12:28.6]} 14.
Qh5+ {[%clk 0:15:40.6]} 14... Kf8 {[%clk 0:12:19.6]} 15. Qxh7 {[%clk 0:15:40.1]}
15... Ng6 {[%clk 0:11:56.3]} 16. Qg8+ {[%clk 0:15:39.2]} 16... Ke7 {[%clk
0:10:32.7]} 17. Qxd8+ {[%clk 0:15:39.4]} 17... Kxd8 {[%clk 0:10:30.2]} 18. Nf3
{[%clk 0:15:40.8]} 18... Rb8 {[%clk 0:10:17.3]} 19. O-O {[%clk 0:15:24.6]} 19...
Nf4 {[%clk 0:09:43.3]} 20. Re1 {[%clk 0:15:06.8]} 20... d5 {[%clk 0:09:22.5]}
21. Bxd5 {[%clk 0:15:05.1]} 21... Nxd5 {[%clk 0:09:18.9]} 22. Nxe5 {[%clk
0:14:55.5]} 22... Nf4 {[%clk 0:08:44.9]} 23. Nd2 {[%clk 0:14:55.8]} 23... Nd3
{[%clk 0:08:36.7]} 24. Re3 {[%clk 0:14:57.8]} 24... Nxe5 {[%clk 0:08:25.9]} 25.
Rg3 {[%clk 0:14:55.3]} 25... Be6 {[%clk 0:07:49.7]} 26. Rxg7 {[%clk 0:14:54.4]}
26... Bxa2 {[%clk 0:07:42.6]} 27. Rxa2 {[%clk 0:14:57.3]} 27... Rb1+ {[%clk
0:07:46.2]} 28. Nf1 {[%clk 0:15:00.1]} 28... Nd3 {[%clk 0:07:25.2]} 29. g3
{[%clk 0:14:55.6]} 29... Nc1 {[%clk 0:07:21.7]} 30. Rxa5 {[%clk 0:14:58.7]}
30... Ne2+ {[%clk 0:07:04.6]} 31. Kg2 {[%clk 0:15:02.5]} 31... Rxf2+ {[%clk
0:06:48.8]} 32. Kxf2 {[%clk 0:15:05.9]} 32... Nc1 {[%clk 0:06:25.5]} 33. Rxa7
{[%clk 0:15:09.2]} 33... Nd3+ {[%clk 0:06:21.5]} 34. Ke3 {[%clk 0:15:11.9]}
34... Ne5 {[%clk 0:06:01.6]} 35. Ra8+ {[%clk 0:15:15.8]} 35... Rb8 {[%clk
0:05:52.3]} 36. Rxb8# {[%clk 0:15:18.6]} 1-0

[Event "Live Chess"]
[Site "Chess.com"]
[Date "2023.09.16"]
[Round "-"]
[White "Tercette"]
[Black "FerreiraPedro"]
[Result "0-1"]
[WhiteElo "138"]
[BlackElo "1401"]
[TimeControl "900+5"]
[EndTime "15:48:03 PDT"]
[Termination "FerreiraPedro venceu por xeque-mate"]

1. e4 {[%clk 0:15:00.6]} 1... e5 {[%clk 0:15:00.5]} 2. Nc3 {[%clk 0:15:04.1]}
2... Nf6 {[%clk 0:15:00.8]} 3. Nf3 {[%clk 0:15:06.8]} 3... Nc6 {[%clk
0:15:04.8]} 4. Bc4 {[%clk 0:15:07.3]} 4... Bc5 {[%clk 0:15:07.3]} 5. Nxe5 {[%clk
0:15:09.6]} 5... Nxe5 {[%clk 0:15:09.2]} 6. f4 {[%clk 0:15:09.7]} 6... Nxc4
{[%clk 0:15:12.4]} 7. Nd5 {[%clk 0:15:08]} 7... Nxd5 {[%clk 0:15:16.1]} 8. exd5
{[%clk 0:15:10.7]} 8... Qe7+ {[%clk 0:15:07.5]} 9. Qe2 {[%clk 0:15:10.5]} 9...
Qxe2+ {[%clk 0:15:11.2]} 10. Kxe2 {[%clk 0:15:13.5]} 10... d6 {[%clk 0:15:13.2]}
11. d3 {[%clk 0:15:16.7]} 11... Nb6 {[%clk 0:15:14.2]} 12. Be3 {[%clk
0:15:17.8]} 12... Bxe3 {[%clk 0:15:17.7]} 13. Kxe3 {[%clk 0:15:21.1]} 13...
Nxd5+ {[%clk 0:15:22.6]} 14. Kd2 {[%clk 0:15:23]} 14... Nxf4 {[%clk 0:15:26.5]}
15. g3 {[%clk 0:15:25.9]} 15... Ne6 {[%clk 0:15:29.4]} 16. g4 {[%clk 0:15:29.2]}
16... O-O {[%clk 0:15:33.9]} 17. g5 {[%clk 0:15:32.5]} 17... Nxg5 {[%clk
0:15:37.8]} 18. h4 {[%clk 0:15:33.8]} 18... Nf3+ {[%clk 0:15:41.8]} 19. Ke2
{[%clk 0:15:34.9]} 19... Bg4 {[%clk 0:15:46.3]} 20. Rhf1 {[%clk 0:15:33.4]}
20... Nh2+ {[%clk 0:15:49.6]} 21. Kf2 {[%clk 0:15:32.3]} 21... Nxf1 {[%clk
0:15:53.7]} 22. Kxf1 {[%clk 0:15:36.2]} 22... Rfe8 {[%clk 0:15:57.2]} 23. d4
{[%clk 0:15:38.1]} 23... Re2 {[%clk 0:16:01.5]} 24. Re1 {[%clk 0:15:39.2]} 24...
Rxe1+ {[%clk 0:16:04]} 25. Kxe1 {[%clk 0:15:43]} 25... Re8+ {[%clk 0:16:08.9]}
26. Kd2 {[%clk 0:15:45.4]} 26... Re2+ {[%clk 0:16:13.8]} 27. Kd3 {[%clk
0:15:48.9]} 27... f6 {[%clk 0:16:18.1]} 28. c4 {[%clk 0:15:49.4]} 28... f5
{[%clk 0:16:22.3]} 29. c5 {[%clk 0:15:52.8]} 29... dxc5 {[%clk 0:16:26.1]} 30.
dxc5 {[%clk 0:15:56.1]} 30... f4 {[%clk 0:16:31]} 31. h5 {[%clk 0:15:53.6]}
31... f3 {[%clk 0:16:33.9]} 32. h6 {[%clk 0:15:57.1]} 32... f2 {[%clk
0:16:38.1]} 33. hxg7 {[%clk 0:16:00.9]} 33... Kxg7 {[%clk 0:16:43]} 34. b4
{[%clk 0:16:03.3]} 34... f1=Q {[%clk 0:16:47]} 35. a4 {[%clk 0:16:05.5]} 35...
Qd1+ {[%clk 0:16:51.5]} 36. Kc4 {[%clk 0:16:08.5]} 36... Rc2+ {[%clk 0:16:56.4]}
37. Kb5 {[%clk 0:16:12.2]} 37... Bd7+ {[%clk 0:17:00.2]} 38. Ka5 {[%clk
0:16:14.3]} 38... b6+ {[%clk 0:17:00.9]} 39. cxb6 {[%clk 0:16:17.5]} 39... cxb6+
{[%clk 0:17:05.8]} 40. Ka6 {[%clk 0:16:18.3]} 40... Qd3+ {[%clk 0:17:10.7]} 41.
Kxa7 {[%clk 0:16:20.2]} 41... Rc7+ {[%clk 0:17:07.7]} 42. Kxb6 {[%clk
0:16:22.8]} 42... Qd6+ {[%clk 0:17:07.4]} 43. Ka5 {[%clk 0:16:21.8]} 43... Ra7#
{[%clk 0:17:11.8]} 0-1

[Event "Live Chess"]
[Site "Chess.com"]
[Date "2023.09.16"]
[Round "-"]
[White "silvaaps"]
[Black "Miinero"]
[Result "0-1"]
[WhiteElo "760"]
[BlackElo "1920"]
[TimeControl "900+5"]
[EndTime "15:50:15 PDT"]
[Termination "Miinero venceu por xeque-mate"]

1. e4 {[%clk 0:15:04.4]} 1... e5 {[%clk 0:15:03.1]} 2. Nf3 {[%clk 0:15:08.2]}
2... Nc6 {[%clk 0:15:05.4]} 3. Bb5 {[%clk 0:15:11.4]} 3... Bc5 {[%clk
0:15:05.2]} 4. Bxc6 {[%clk 0:15:15.1]} 4... dxc6 {[%clk 0:15:09]} 5. O-O {[%clk
0:15:19.4]} 5... Bg4 {[%clk 0:15:10.9]} 6. d3 {[%clk 0:15:22.9]} 6... Nf6 {[%clk
0:15:14.7]} 7. h3 {[%clk 0:15:26.4]} 7... h5 {[%clk 0:15:18.1]} 8. hxg4 {[%clk
0:15:22.9]} 8... hxg4 {[%clk 0:15:21.2]} 9. Nh2 {[%clk 0:15:27.6]} 9... g3
{[%clk 0:15:14.7]} 10. Be3 {[%clk 0:15:23.3]} 10... Bxe3 {[%clk 0:15:04.9]} 11.
fxe3 {[%clk 0:15:25.3]} 11... gxh2+ {[%clk 0:14:52.3]} 12. Kf2 {[%clk
0:15:27.7]} 12... Qd7 {[%clk 0:14:55.8]} 13. g3 {[%clk 0:15:27.3]} 13... O-O-O
{[%clk 0:14:58.8]} 14. Rh1 {[%clk 0:15:31]} 14... Ng4+ {[%clk 0:15:02.5]} 15.
Kf3 {[%clk 0:15:26.5]} 15... Qe6 {[%clk 0:15:03.9]} 16. Ke2 {[%clk 0:15:22.1]}
16... Qf6 {[%clk 0:14:58.1]} 17. Nc3 {[%clk 0:15:21.1]} 17... Qf2# {[%clk
0:15:00.9]} 0-1